[Event "*** Titled Tuesday Blitz"]
[Site "Chess.com"]
[Date "2021.03.30"]
[Round "10"]
[White "Abund"]
[Black "Trankuilizer"]
[Result "1/2-1/2"]
[WhiteElo "2731"]
[BlackElo "2613"]
[TimeControl "180+1"]
[EndTime "11:58:32 PDT"]
[Termination "Game drawn by repetition"]

1. e4 {[%clk 0:03:00.9]} 1... e5 {[%clk 0:02:58.9]} 2. Nf3 {[%clk 0:03:01]} 2...
Nc6 {[%clk 0:02:58.8]} 3. Bc4 {[%clk 0:03:01.2]} 3... Bc5 {[%clk 0:02:58.1]} 4.
c3 {[%clk 0:03:01]} 4... Nf6 {[%clk 0:02:58.1]} 5. d4 {[%clk 0:03:01.3]} 5...
exd4 {[%clk 0:02:58]} 6. e5 {[%clk 0:03:01.6]} 6... d5 {[%clk 0:02:56.2]} 7. Bb5
{[%clk 0:03:01.9]} 7... Ne4 {[%clk 0:02:56.5]} 8. cxd4 {[%clk 0:03:02.4]} 8...
Bb6 {[%clk 0:02:57.1]} 9. Nc3 {[%clk 0:03:02.2]} 9... O-O {[%clk 0:02:55.2]} 10.
Be3 {[%clk 0:03:00.9]} 10... Bg4 {[%clk 0:02:54.3]} 11. h3 {[%clk 0:03:00.5]}
11... Bh5 {[%clk 0:02:53.8]} 12. Qc2 {[%clk 0:02:59.3]} 12... f5 {[%clk
0:02:42.1]} 13. Nxd5 {[%clk 0:02:30.4]} 13... Ba5+ {[%clk 0:02:34.3]} 14. Kf1
{[%clk 0:02:16.7]} 14... Kh8 {[%clk 0:01:58.5]} 15. Nf4 {[%clk 0:02:02.6]} 15...
Bxf3 {[%clk 0:01:39]} 16. gxf3 {[%clk 0:02:02]} 16... Ng5 {[%clk 0:01:38.3]} 17.
Bxc6 {[%clk 0:01:58.6]} 17... bxc6 {[%clk 0:01:37.2]} 18. Qxc6 {[%clk
0:01:26.4]} 18... Rb8 {[%clk 0:01:34.8]} 19. b3 {[%clk 0:01:22.2]} 19... Rb6
{[%clk 0:00:52.6]} 20. Qd5 {[%clk 0:01:17.9]} 20... Qxd5 {[%clk 0:00:51.3]} 21.
Nxd5 {[%clk 0:01:18]} 21... Rb5 {[%clk 0:00:52.2]} 22. Nf4 {[%clk 0:01:07]}
22... Nxf3 {[%clk 0:00:29.7]} 23. Ke2 {[%clk 0:00:57.1]} 23... Nxe5 {[%clk
0:00:29.9]} 24. dxe5 {[%clk 0:00:56.3]} 24... Rxe5 {[%clk 0:00:30.4]} 25. Rad1
{[%clk 0:00:53.5]} 25... g5 {[%clk 0:00:26]} 26. Nd3 {[%clk 0:00:49.7]} 26...
Ree8 {[%clk 0:00:21.2]} 27. Kf3 {[%clk 0:00:47.2]} 27... h6 {[%clk 0:00:14.9]}
28. Bd4+ {[%clk 0:00:42.5]} 28... Kh7 {[%clk 0:00:14.7]} 29. b4 {[%clk
0:00:39.3]} 29... Bb6 {[%clk 0:00:14.5]} 30. Bc5 {[%clk 0:00:39.6]} 30... Rf7
{[%clk 0:00:11.6]} 31. Rhe1 {[%clk 0:00:39.4]} 31... Rxe1 {[%clk 0:00:05.6]} 32.
Rxe1 {[%clk 0:00:39.6]} 32... Rd7 {[%clk 0:00:05.8]} 33. Re7+ {[%clk 0:00:38.5]}
33... Rxe7 {[%clk 0:00:06]} 34. Bxe7 {[%clk 0:00:39.4]} 34... Kg6 {[%clk
0:00:06.9]} 35. Bc5 {[%clk 0:00:39.6]} 35... Kf6 {[%clk 0:00:07]} 36. a4 {[%clk
0:00:38.4]} 36... Ke6 {[%clk 0:00:06.3]} 37. Bxb6 {[%clk 0:00:36.3]} 37... cxb6
{[%clk 0:00:06]} 38. b5 {[%clk 0:00:30.9]} 38... Kd5 {[%clk 0:00:06.2]} 39. Nb4+
{[%clk 0:00:31.2]} 39... Kc5 {[%clk 0:00:06.5]} 40. Nc6 {[%clk 0:00:27.9]} 40...
a6 {[%clk 0:00:06.8]} 41. Na7 {[%clk 0:00:25.8]} 41... axb5 {[%clk 0:00:03.6]}
42. axb5 {[%clk 0:00:25.6]} 42... h5 {[%clk 0:00:03.4]} 43. h4 {[%clk
0:00:22.3]} 43... gxh4 {[%clk 0:00:02.6]} 44. Kg2 {[%clk 0:00:22.7]} 44... Kd4
{[%clk 0:00:02.8]} 45. Nc8 {[%clk 0:00:22.5]} 45... Kc5 {[%clk 0:00:03]} 46. Na7
{[%clk 0:00:22.3]} 46... Kd4 {[%clk 0:00:03.1]} 47. Kf3 {[%clk 0:00:20.6]} 47...
Kc5 {[%clk 0:00:01.1]} 48. Kg2 {[%clk 0:00:16.5]} 1/2-1/2

[Event "*** Titled Tuesday Blitz"]
[Site "Chess.com"]
[Date "2021.03.30"]
[Round "10"]
[White "DFeco"]
[Black "Tpros"]
[Result "1/2-1/2"]
[WhiteElo "2328"]
[BlackElo "2452"]
[TimeControl "180+1"]
[EndTime "11:58:32 PDT"]
[Termination "Game drawn by repetition"]

1. c4 {[%clk 0:03:00.9]} 1... e5 {[%clk 0:02:48.8]} 2. g3 {[%clk 0:03:00.6]}
2... d6 {[%clk 0:02:48.5]} 3. Bg2 {[%clk 0:02:59.2]} 3... g6 {[%clk 0:02:47.5]}
4. Nc3 {[%clk 0:02:59.3]} 4... Bg7 {[%clk 0:02:46.4]} 5. e4 {[%clk 0:02:59.2]}
5... Ne7 {[%clk 0:02:39.8]} 6. Nge2 {[%clk 0:02:58.2]} 6... Nbc6 {[%clk
0:02:37.3]} 7. O-O {[%clk 0:02:56.4]} 7... O-O {[%clk 0:02:36.4]} 8. d3 {[%clk
0:02:55.8]} 8... Be6 {[%clk 0:02:33.1]} 9. h3 {[%clk 0:02:53.1]} 9... Qd7 {[%clk
0:02:32.4]} 10. Kh2 {[%clk 0:02:51.5]} 10... h6 {[%clk 0:02:33.3]} 11. Nd5
{[%clk 0:02:50.6]} 11... f5 {[%clk 0:02:34.2]} 12. f4 {[%clk 0:02:47.1]} 12...
Rf7 {[%clk 0:02:32.6]} 13. Rb1 {[%clk 0:02:45.7]} 13... a5 {[%clk 0:02:31.4]}
14. a3 {[%clk 0:02:44]} 14... Raf8 {[%clk 0:02:31.5]} 15. b4 {[%clk 0:02:42.3]}
15... axb4 {[%clk 0:02:32.4]} 16. axb4 {[%clk 0:02:42.3]} 16... Nc8 {[%clk
0:02:31.1]} 17. Be3 {[%clk 0:02:30.9]} 17... Kh7 {[%clk 0:02:19.8]} 18. Qd2
{[%clk 0:02:27.6]} 18... N6e7 {[%clk 0:01:56.8]} 19. Rf2 {[%clk 0:01:49.5]}
19... c6 {[%clk 0:01:56.2]} 20. Nxe7 {[%clk 0:01:47.7]} 20... Nxe7 {[%clk
0:01:57.1]} 21. b5 {[%clk 0:01:47.3]} 21... c5 {[%clk 0:01:48.7]} 22. Nc3 {[%clk
0:01:46.5]} 22... exf4 {[%clk 0:01:46]} 23. gxf4 {[%clk 0:01:34.5]} 23... Ng8
{[%clk 0:01:25.1]} 24. Nd5 {[%clk 0:01:25.7]} 24... Nf6 {[%clk 0:01:20.1]} 25.
e5 {[%clk 0:01:18.3]} 25... dxe5 {[%clk 0:01:11.3]} 26. Bxc5 {[%clk 0:01:09.2]}
26... Rd8 {[%clk 0:00:58.7]} 27. fxe5 {[%clk 0:00:38.8]} 27... Nxd5 {[%clk
0:00:47.2]} 28. cxd5 {[%clk 0:00:36.2]} 28... Bxd5 {[%clk 0:00:48.1]} 29. d4
{[%clk 0:00:32.6]} 29... Bxg2 {[%clk 0:00:44.8]} 30. Rxg2 {[%clk 0:00:29.3]}
30... Bxe5+ {[%clk 0:00:43.6]} 31. Kh1 {[%clk 0:00:27.4]} 31... Bxd4 {[%clk
0:00:40.3]} 32. Bxd4 {[%clk 0:00:22.5]} 32... Qxd4 {[%clk 0:00:41.2]} 33. Qxd4
{[%clk 0:00:22]} 33... Rxd4 {[%clk 0:00:39.4]} 34. Rc2 {[%clk 0:00:22.3]} 34...
h5 {[%clk 0:00:33.5]} 35. b6 {[%clk 0:00:21.8]} 35... Rdd7 {[%clk 0:00:29.8]}
36. Rbc1 {[%clk 0:00:20.5]} 36... Kh6 {[%clk 0:00:26.7]} 37. Rc7 {[%clk
0:00:20]} 37... Kg5 {[%clk 0:00:25.7]} 38. Rxd7 {[%clk 0:00:18.7]} 38... Rxd7
{[%clk 0:00:26.2]} 39. Rc7 {[%clk 0:00:18.8]} 39... Rd2 {[%clk 0:00:26.2]} 40.
Rxb7 {[%clk 0:00:17.7]} 40... Rb2 {[%clk 0:00:24.2]} 41. Rb8 {[%clk 0:00:16.7]}
41... Kh4 {[%clk 0:00:21.4]} 42. Kg1 {[%clk 0:00:12.1]} 42... f4 {[%clk
0:00:19.6]} 43. b7 {[%clk 0:00:08.8]} 43... g5 {[%clk 0:00:19.5]} 44. Kf1 {[%clk
0:00:08.1]} 44... f3 {[%clk 0:00:17.4]} 45. Rf8 {[%clk 0:00:06.6]} 45... Kg3
{[%clk 0:00:13.9]} 46. b8=Q+ {[%clk 0:00:04.5]} 46... Rxb8 {[%clk 0:00:14.2]}
47. Rxb8 {[%clk 0:00:04.5]} 47... Kxh3 {[%clk 0:00:14.9]} 48. Kf2 {[%clk
0:00:04.4]} 48... g4 {[%clk 0:00:15.4]} 49. Rb1 {[%clk 0:00:03]} 49... Kh2
{[%clk 0:00:15.3]} 50. Rb4 {[%clk 0:00:02.6]} 50... Kh3 {[%clk 0:00:14.8]} 51.
Rb1 {[%clk 0:00:01.9]} 51... Kh2 {[%clk 0:00:14.7]} 52. Rb4 {[%clk 0:00:02.1]}
52... Kh3 {[%clk 0:00:14.3]} 53. Rb1 {[%clk 0:00:02.6]} 1/2-1/2

[Event "*** Titled Tuesday Blitz"]
[Site "Chess.com"]
[Date "2021.03.30"]
[Round "10"]
[White "alexrustemov"]
[Black "Savva09022009"]
[Result "1-0"]
[WhiteElo "2733"]
[BlackElo "2603"]
[TimeControl "180+1"]
[EndTime "11:58:34 PDT"]
[Termination "alexrustemov won by checkmate"]

1. d4 {[%clk 0:03:00.9]} 1... Nf6 {[%clk 0:02:58.6]} 2. c4 {[%clk 0:03:00.3]}
2... e6 {[%clk 0:02:56.5]} 3. Nf3 {[%clk 0:03:00.3]} 3... d5 {[%clk 0:02:54.9]}
4. Nc3 {[%clk 0:03:00.3]} 4... Bb4 {[%clk 0:02:55.1]} 5. Bg5 {[%clk 0:02:59.7]}
5... dxc4 {[%clk 0:02:50.9]} 6. e4 {[%clk 0:02:59]} 6... c5 {[%clk 0:02:50.3]}
7. Bxc4 {[%clk 0:02:57.5]} 7... cxd4 {[%clk 0:02:46.8]} 8. Nxd4 {[%clk
0:02:57.8]} 8... Qa5 {[%clk 0:02:44.4]} 9. Bd2 {[%clk 0:02:56.5]} 9... Qc5
{[%clk 0:02:34.5]} 10. Bb5+ {[%clk 0:02:55.8]} 10... Bd7 {[%clk 0:02:30.5]} 11.
Nb3 {[%clk 0:02:56.2]} 11... Qb6 {[%clk 0:02:26.7]} 12. Bd3 {[%clk 0:02:55.9]}
12... Bc6 {[%clk 0:02:22]} 13. Qe2 {[%clk 0:02:54.6]} 13... O-O {[%clk
0:02:20.1]} 14. O-O {[%clk 0:02:54.3]} 14... Nbd7 {[%clk 0:02:12.6]} 15. Rad1
{[%clk 0:02:37.1]} 15... Ne5 {[%clk 0:02:06.1]} 16. Bc2 {[%clk 0:02:31.5]} 16...
Bxc3 {[%clk 0:02:02.5]} 17. Bxc3 {[%clk 0:02:30.1]} 17... Bb5 {[%clk 0:01:59.6]}
18. Qd2 {[%clk 0:02:13]} 18... Bxf1 {[%clk 0:01:58.8]} 19. Rxf1 {[%clk
0:02:12.7]} 19... Nc6 {[%clk 0:01:46]} 20. Bxf6 {[%clk 0:02:00.2]} 20... gxf6
{[%clk 0:01:46.4]} 21. Qh6 {[%clk 0:02:00.7]} 21... Ne5 {[%clk 0:01:43.2]} 22.
Qxf6 {[%clk 0:01:58]} 22... Ng6 {[%clk 0:01:43.7]} 23. e5 {[%clk 0:01:47.9]}
23... Qd8 {[%clk 0:01:39]} 24. Bxg6 {[%clk 0:01:42.2]} 24... Qxf6 {[%clk
0:01:32.7]} 25. Bxh7+ {[%clk 0:01:41.7]} 25... Kxh7 {[%clk 0:01:33.6]} 26. exf6
{[%clk 0:01:42.2]} 26... Kg6 {[%clk 0:01:32.9]} 27. Nc5 {[%clk 0:01:40.8]} 27...
Rac8 {[%clk 0:01:20.7]} 28. Ne4 {[%clk 0:01:22.9]} 28... Rc2 {[%clk 0:01:14.4]}
29. g4 {[%clk 0:01:20.4]} 29... Rh8 {[%clk 0:01:06.8]} 30. Kg2 {[%clk
0:01:16.9]} 30... Rxb2 {[%clk 0:01:04.5]} 31. Kg3 {[%clk 0:01:17]} 31... Re2
{[%clk 0:00:55.3]} 32. f3 {[%clk 0:01:15.7]} 32... Rhxh2 {[%clk 0:00:53.4]} 33.
Rd1 {[%clk 0:01:15.3]} 33... Rhg2+ {[%clk 0:00:45.7]} 34. Kf4 {[%clk 0:01:15.1]}
34... Rxe4+ {[%clk 0:00:45]} 35. fxe4 {[%clk 0:01:03.9]} 35... Rxa2 {[%clk
0:00:41.1]} 36. Rd7 {[%clk 0:00:57.8]} 36... b5 {[%clk 0:00:34.9]} 37. Rb7
{[%clk 0:00:57.3]} 37... a6 {[%clk 0:00:33.4]} 38. Ke5 {[%clk 0:00:57]} 38...
Rc2 {[%clk 0:00:27.6]} 39. Rb8 {[%clk 0:00:57]} 39... Rc5+ {[%clk 0:00:26.8]}
40. Kd6 {[%clk 0:00:57.2]} 40... Rc1 {[%clk 0:00:12.1]} 41. Rg8+ {[%clk
0:00:56.3]} 41... Kh6 {[%clk 0:00:09.9]} 42. g5+ {[%clk 0:00:55.7]} 42... Kh5
{[%clk 0:00:09.7]} 43. g6 {[%clk 0:00:56.1]} 43... Rd1+ {[%clk 0:00:08.1]} 44.
Kc5 {[%clk 0:00:47.8]} 44... Rc1+ {[%clk 0:00:06.5]} 45. Kb6 {[%clk 0:00:47.8]}
45... fxg6 {[%clk 0:00:04.9]} 46. f7 {[%clk 0:00:45.6]} 46... Rf1 {[%clk
0:00:04.9]} 47. f8=Q {[%clk 0:00:45.1]} 47... Rxf8 {[%clk 0:00:04.7]} 48. Rxf8
{[%clk 0:00:45.7]} 48... Kg5 {[%clk 0:00:04.9]} 49. Kxa6 {[%clk 0:00:45.7]}
49... b4 {[%clk 0:00:04.4]} 50. Kb5 {[%clk 0:00:45.6]} 50... b3 {[%clk
0:00:04.8]} 51. Kc4 {[%clk 0:00:45.7]} 51... b2 {[%clk 0:00:05.4]} 52. Rf1
{[%clk 0:00:44.6]} 52... Kg4 {[%clk 0:00:05.2]} 53. Kd4 {[%clk 0:00:44.4]} 53...
Kg3 {[%clk 0:00:03.5]} 54. Ke3 {[%clk 0:00:44]} 54... Kg2 {[%clk 0:00:04.4]} 55.
Rb1 {[%clk 0:00:43.3]} 55... g5 {[%clk 0:00:05.3]} 56. Rxb2+ {[%clk 0:00:43.6]}
56... Kh3 {[%clk 0:00:05.7]} 57. Kf2 {[%clk 0:00:42.6]} 57... g4 {[%clk
0:00:06.6]} 58. Rb3+ {[%clk 0:00:41.9]} 58... g3+ {[%clk 0:00:07.5]} 59. Rxg3+
{[%clk 0:00:41.1]} 59... Kh4 {[%clk 0:00:08.4]} 60. Rg6 {[%clk 0:00:40.8]} 60...
e5 {[%clk 0:00:09.3]} 61. Kf3 {[%clk 0:00:39.6]} 61... Kh5 {[%clk 0:00:10.2]}
62. Re6 {[%clk 0:00:39.5]} 62... Kh4 {[%clk 0:00:06]} 63. Rxe5 {[%clk
0:00:38.8]} 63... Kh3 {[%clk 0:00:06.9]} 64. Rh5# {[%clk 0:00:39]} 1-0

[Event "*** Titled Tuesday Blitz"]
[Site "Chess.com"]
[Date "2021.03.30"]
[Round "10"]
[White "Deepweb2020"]
[Black "comsac"]
[Result "1-0"]
[WhiteElo "2500"]
[BlackElo "2368"]
[TimeControl "180+1"]
[EndTime "11:58:34 PDT"]
[Termination "Deepweb2020 won on time"]

1. Nf3 {[%clk 0:03:00.9]} 1... d5 {[%clk 0:03:00.2]} 2. c4 {[%clk 0:03:01.8]}
2... e6 {[%clk 0:03:00.6]} 3. g3 {[%clk 0:03:01.9]} 3... Nf6 {[%clk 0:03:01.2]}
4. Bg2 {[%clk 0:03:01.4]} 4... Be7 {[%clk 0:03:01.8]} 5. O-O {[%clk 0:03:01.9]}
5... O-O {[%clk 0:03:02.4]} 6. b3 {[%clk 0:03:02.5]} 6... b6 {[%clk 0:03:03]} 7.
Bb2 {[%clk 0:03:01.8]} 7... Bb7 {[%clk 0:03:03.4]} 8. d4 {[%clk 0:02:57.3]} 8...
c5 {[%clk 0:03:03.7]} 9. Nc3 {[%clk 0:02:56.9]} 9... Na6 {[%clk 0:03:04.1]} 10.
cxd5 {[%clk 0:02:52.2]} 10... exd5 {[%clk 0:03:03.7]} 11. dxc5 {[%clk
0:02:47.5]} 11... bxc5 {[%clk 0:03:04.6]} 12. Rc1 {[%clk 0:02:40.9]} 12... Nc7
{[%clk 0:03:04.3]} 13. Na4 {[%clk 0:02:40.6]} 13... Ne6 {[%clk 0:03:03.8]} 14.
Qc2 {[%clk 0:02:39.8]} 14... Rc8 {[%clk 0:02:57.8]} 15. Rfd1 {[%clk 0:02:30.8]}
15... Qa5 {[%clk 0:02:51.5]} 16. Bc3 {[%clk 0:02:28.2]} 16... Qa6 {[%clk
0:02:51.7]} 17. Bf1 {[%clk 0:02:18.9]} 17... c4 {[%clk 0:02:30.2]} 18. Nd4
{[%clk 0:02:13]} 18... cxb3 {[%clk 0:02:18.3]} 19. axb3 {[%clk 0:02:09.7]} 19...
Nxd4 {[%clk 0:01:57.5]} 20. Rxd4 {[%clk 0:02:02.4]} 20... Ne4 {[%clk 0:01:57.7]}
21. Qd1 {[%clk 0:01:39.3]} 21... Bf6 {[%clk 0:01:37.9]} 22. e3 {[%clk
0:01:38.8]} 22... Qe6 {[%clk 0:01:20.4]} 23. Rd3 {[%clk 0:01:34.4]} 23... Nxc3
{[%clk 0:01:03]} 24. Nxc3 {[%clk 0:01:31.6]} 24... Ba6 {[%clk 0:01:03.3]} 25.
Rxd5 {[%clk 0:01:18.7]} 25... Bxf1 {[%clk 0:00:58.5]} 26. Rd6 {[%clk 0:01:13.8]}
26... Qh3 {[%clk 0:00:58.4]} 27. Qxf1 {[%clk 0:01:10.8]} 27... Qxf1+ {[%clk
0:00:58.3]} 28. Kxf1 {[%clk 0:01:11.7]} 28... Rxc3 {[%clk 0:00:58.8]} 29. Rb1
{[%clk 0:01:08.6]} 29... Rfc8 {[%clk 0:00:58.2]} 30. Kg2 {[%clk 0:01:07.7]}
30... Rb8 {[%clk 0:00:55.2]} 31. b4 {[%clk 0:01:05.7]} 31... Be7 {[%clk
0:00:51.8]} 32. Rd7 {[%clk 0:01:06]} 32... Bxb4 {[%clk 0:00:46]} 33. Rxb4 {[%clk
0:01:05.1]} 33... Rcc8 {[%clk 0:00:31.1]} 34. Ra4 {[%clk 0:01:01.5]} 34... Ra8
{[%clk 0:00:30.3]} 35. Ra6 {[%clk 0:00:59.8]} 35... g6 {[%clk 0:00:27.2]} 36. h4
{[%clk 0:00:59.6]} 36... h5 {[%clk 0:00:27]} 37. Kf3 {[%clk 0:00:59.4]} 37...
Kg7 {[%clk 0:00:27.1]} 38. Kf4 {[%clk 0:00:57.7]} 38... Rc4+ {[%clk 0:00:26.7]}
39. e4 {[%clk 0:00:57.4]} 39... Rc2 {[%clk 0:00:26.1]} 40. f3 {[%clk 0:00:57.5]}
40... Rc3 {[%clk 0:00:22.9]} 41. Raxa7 {[%clk 0:00:53.4]} 41... Rxa7 {[%clk
0:00:22.8]} 42. Rxa7 {[%clk 0:00:54.3]} 42... Rc5 {[%clk 0:00:22.9]} 43. e5
{[%clk 0:00:52.3]} 43... Rc4+ {[%clk 0:00:20.1]} 44. Kg5 {[%clk 0:00:50.6]}
44... Rc6 {[%clk 0:00:20]} 45. Re7 {[%clk 0:00:42.1]} 45... Kf8 {[%clk 0:00:17]}
46. Rb7 {[%clk 0:00:40.7]} 46... Kg7 {[%clk 0:00:17]} 47. Rb3 {[%clk 0:00:35.3]}
47... Re6 {[%clk 0:00:15.9]} 48. f4 {[%clk 0:00:32.3]} 48... Re7 {[%clk
0:00:09.4]} 49. Rb6 {[%clk 0:00:29]} 49... Rd7 {[%clk 0:00:06.7]} 50. g4 {[%clk
0:00:24.8]} 50... hxg4 {[%clk 0:00:05.4]} 51. Kxg4 {[%clk 0:00:25.7]} 51... Rd4
{[%clk 0:00:05.2]} 52. Rb7 {[%clk 0:00:24.2]} 52... Kg8 {[%clk 0:00:05.3]} 53.
Kg5 {[%clk 0:00:24]} 53... Rc4 {[%clk 0:00:05.4]} 54. e6 {[%clk 0:00:20.3]}
54... fxe6 {[%clk 0:00:03.5]} 55. Kxg6 {[%clk 0:00:20.2]} 1-0

[Event "*** Titled Tuesday Blitz"]
[Site "Chess.com"]
[Date "2021.03.30"]
[Round "10"]
[White "muchojogo"]
[Black "GM_Crest"]
[Result "1-0"]
[WhiteElo "2445"]
[BlackElo "2684"]
[TimeControl "180+1"]
[EndTime "11:58:35 PDT"]
[Termination "muchojogo won by resignation"]

1. d4 {[%clk 0:03:00.9]} 1... Nf6 {[%clk 0:02:59.2]} 2. Bf4 {[%clk 0:03:01.4]}
2... d5 {[%clk 0:02:50.5]} 3. e3 {[%clk 0:03:01.1]} 3... c5 {[%clk 0:02:47.9]}
4. c3 {[%clk 0:03:01.5]} 4... Nc6 {[%clk 0:02:44.9]} 5. Nd2 {[%clk 0:03:01.7]}
5... Bf5 {[%clk 0:02:40.9]} 6. Ngf3 {[%clk 0:02:53.2]} 6... e6 {[%clk
0:02:40.2]} 7. Nh4 {[%clk 0:02:52]} 7... Bg4 {[%clk 0:02:36.9]} 8. Qb3 {[%clk
0:02:51.1]} 8... Qb6 {[%clk 0:02:36.6]} 9. h3 {[%clk 0:02:49.5]} 9... Bh5 {[%clk
0:02:36.3]} 10. g4 {[%clk 0:02:36.8]} 10... Bg6 {[%clk 0:02:35.7]} 11. Nxg6
{[%clk 0:02:37.7]} 11... hxg6 {[%clk 0:02:35.5]} 12. Be2 {[%clk 0:02:32]} 12...
Be7 {[%clk 0:02:31.7]} 13. Qxb6 {[%clk 0:02:23.9]} 13... axb6 {[%clk 0:02:31.6]}
14. Bc7 {[%clk 0:02:24.5]} 14... Nd7 {[%clk 0:02:20]} 15. dxc5 {[%clk
0:02:03.4]} 15... bxc5 {[%clk 0:02:18]} 16. e4 {[%clk 0:02:03.7]} 16... d4
{[%clk 0:02:04]} 17. Nc4 {[%clk 0:02:03]} 17... dxc3 {[%clk 0:01:58.4]} 18. bxc3
{[%clk 0:02:03.9]} 18... O-O {[%clk 0:01:40.1]} 19. O-O {[%clk 0:02:03.5]} 19...
Rfc8 {[%clk 0:01:29.2]} 20. Bd6 {[%clk 0:02:03.4]} 20... g5 {[%clk 0:01:10.7]}
21. Rfb1 {[%clk 0:01:59.4]} 21... Ra7 {[%clk 0:00:48.6]} 22. Rb2 {[%clk
0:01:52.6]} 22... Bxd6 {[%clk 0:00:45.7]} 23. Nxd6 {[%clk 0:01:53.5]} 23... Rb8
{[%clk 0:00:46]} 24. Rab1 {[%clk 0:01:48.5]} 24... b6 {[%clk 0:00:45.2]} 25. Bb5
{[%clk 0:01:46.4]} 25... Nce5 {[%clk 0:00:44.1]} 26. a4 {[%clk 0:01:43.6]} 26...
Nf6 {[%clk 0:00:43.2]} 27. Kg2 {[%clk 0:01:11.3]} 27... Rd8 {[%clk 0:00:42.8]}
28. Rd2 {[%clk 0:01:06.4]} 28... Kf8 {[%clk 0:00:42.3]} 29. Rbd1 {[%clk
0:01:03.5]} 29... Raa8 {[%clk 0:00:36.2]} 30. f3 {[%clk 0:00:58.9]} 30... Ke7
{[%clk 0:00:34.4]} 31. Nc4 {[%clk 0:00:58.2]} 31... Nxc4 {[%clk 0:00:32.8]} 32.
Bxc4 {[%clk 0:00:50.6]} 32... Rxd2+ {[%clk 0:00:32.3]} 33. Rxd2 {[%clk
0:00:51.5]} 33... Rxa4 {[%clk 0:00:32.5]} 34. Bb5 {[%clk 0:00:52]} 34... Ra7
{[%clk 0:00:29]} 35. c4 {[%clk 0:00:52.3]} 35... Nd7 {[%clk 0:00:29.1]} 36. Bxd7
{[%clk 0:00:36.3]} 36... Rxd7 {[%clk 0:00:28.5]} 37. Ra2 {[%clk 0:00:37.2]}
37... Kf6 {[%clk 0:00:24]} 38. Ra6 {[%clk 0:00:34.7]} 38... Rd2+ {[%clk
0:00:23]} 39. Kg3 {[%clk 0:00:34.7]} 39... Rb2 {[%clk 0:00:23.5]} 40. Ra7 {[%clk
0:00:33.1]} 40... Rb4 {[%clk 0:00:22.9]} 41. Rb7 {[%clk 0:00:33.4]} 41... Ke5
{[%clk 0:00:20]} 42. Rxf7 {[%clk 0:00:32.9]} 42... Rxc4 {[%clk 0:00:20.3]} 43.
Rxg7 {[%clk 0:00:33.4]} 43... b5 {[%clk 0:00:20.5]} 44. Rxg5+ {[%clk 0:00:33.3]}
44... Kf6 {[%clk 0:00:20.3]} 45. Rg8 {[%clk 0:00:33]} 45... b4 {[%clk
0:00:20.6]} 46. g5+ {[%clk 0:00:31.8]} 46... Kf7 {[%clk 0:00:20.4]} 47. Rb8
{[%clk 0:00:32.3]} 47... Rc3 {[%clk 0:00:20.7]} 48. h4 {[%clk 0:00:33]} 48... b3
{[%clk 0:00:21.1]} 49. h5 {[%clk 0:00:33.4]} 49... c4 {[%clk 0:00:21.4]} 50.
Rb7+ {[%clk 0:00:32.4]} 50... Kf8 {[%clk 0:00:20.5]} 51. h6 {[%clk 0:00:32.1]}
51... Rc1 {[%clk 0:00:20.4]} 52. Kf4 {[%clk 0:00:25.7]} 52... Rh1 {[%clk
0:00:20]} 53. Ke5 {[%clk 0:00:23.7]} 53... Rh5 {[%clk 0:00:18.9]} 54. Kf6 {[%clk
0:00:23.2]} 54... Ke8 {[%clk 0:00:18.9]} 55. Kxe6 {[%clk 0:00:22.8]} 55... Kd8
{[%clk 0:00:18.8]} 56. Kd6 {[%clk 0:00:20.3]} 56... Kc8 {[%clk 0:00:19]} 57.
Rc7+ {[%clk 0:00:20.3]} 57... Kb8 {[%clk 0:00:18]} 58. Rxc4 {[%clk 0:00:21.1]}
58... Rxg5 {[%clk 0:00:18.5]} 59. Rb4+ {[%clk 0:00:20.6]} 59... Kc8 {[%clk
0:00:18.9]} 60. Rxb3 {[%clk 0:00:21.2]} 60... Rg6+ {[%clk 0:00:19.4]} 61. Kd5
{[%clk 0:00:20.8]} 61... Rxh6 {[%clk 0:00:20.3]} 62. e5 {[%clk 0:00:20.6]} 1-0